[Event "CCT Final-RR 2024"]
[Site "Oslo"]
[Date "2024.12.19"]
[Round "7"]
[White "Lazavik, Denis"]
[Black "Carlsen, Magnus"]
[Result "1/2-1/2"]
[ECO "A30"]
[WhiteElo "2578"]
[BlackElo "2831"]
[Annotator "TA"]
[PlyCount "86"]
[EventDate "2024.12.11"]
[EventType "tourn"]
[EventCountry "NOR"]
[SourceTitle "playchess.com"]
[Source "ChessBase"]
[SourceQuality "1"]
[TimeControl "600+2"]

{[%evp 16,86,18,8,11,14,20,21,16,10,30,23,31,23,20,30,26,-2,-12,0,36,34,29,-35,-36,-31,-33,-38,-32,-99,-99,-94,-99,-112,-110,-114,-115,-119,-88,-106,-68,-73,-88,-41,-68,-79,-60,-60,-61,-59,-78,-43,-71,-60,0,-66,-54,-51,0,0,-8,-88,-88,-443,-448,-442,-416,-395,0,0,0,-337,0]} 1. Nf3 {[%emt 0:00:03]} Nf6 {[%emt 0:00:15]} 2. b3 {[%emt 0:00:02]} g6 {[%emt 0:00:02]} 3. Bb2 {[%emt 0:00:02]} Bg7 {[%emt 0:00:01]} 4. g3 {[%emt 0:00:04]} b6 {[%emt 0:00:01]} 5. Bg2 {[%emt 0:00:03]} Bb7 {[%emt 0:00:01]} 6. O-O {[%emt 0:00:03]} O-O {[%emt 0:00:03]} 7. c4 {[%emt 0:00:02]} e6 {[%emt 0:00:01]} 8. e3 {[%emt 0:00:13]} c5 {[%emt 0:00:19]} 9. d4 {[%emt 0:00:16]} Na6 {[%emt 0:00:02]} 10. Qe2 {[%emt 0:00:20]} d5 {[%emt 0:00:09]} 11. Rd1 {[%emt 0:00:08]} Qe7 {[%emt 0:00:04]} 12. Nc3 {[%emt 0:00:22]} Rfd8 {[%emt 0:00:07]} 13. cxd5 {[%emt 0:01:16]} exd5 {[%emt 0:00:01]} 14. Rac1 {[%emt 0:00:07]} Rac8 {[%emt 0:00:42]} 15. Bh3 {[%emt 0:00:24]} Ra8 {[%emt 0:00:48]} 16. Nb5 {[%emt 0:02:33]} Nb4 {[%emt 0:00:58]} 17. a3 {[%emt 0:00:12]} Na2 {[%emt 0:00:25]} 18. Ra1 {[%emt 0:00:23]} a6 $1 {[%emt 0:00:01]} 19. Nc3 {[%emt 0:02:05]} (19. dxc5 $1 $11 axb5 20. c6 Bxc6 21. Rxa2) 19... Nxc3 $15 {[%emt 0:00:03]} 20. Bxc3 {[%emt 0:00:01]} c4 {[%emt 0:00:27]} 21. Bb4 {[%emt 0:00:16]} Qe8 {[%emt 0:00:11]} 22. a4 {[%emt 0:00:31]} (22. bxc4 $15 dxc4 23. Be1) 22... a5 $1 $17 {[%emt 0:00:17]} 23. Be1 {[%emt 0:00:04]} cxb3 {[%emt 0:00:22]} 24. Qb2 {[%emt 0:00:08]} b5 $1 {[%emt 0:00:17]} (24... Qe4 $6 25. Nd2 Qe8 26. Qxb3 $11) 25. Qxb3 {[%emt 0:00:29]} b4 {[%emt 0:00:02]} 26. Rdc1 {[%emt 0:00:02]} Bc8 {[%emt 0:00:42]} 27. Bg2 {[%emt 0:00:15]} Ba6 {[%emt 0:00:02]} 28. Ne5 {[%emt 0:00:03]} Rac8 {[%emt 0:00:01]} 29. Bh3 {[%emt 0:00:11]} Rxc1 {[%emt 0:00:15]} 30. Rxc1 {[%emt 0:00:01]} Ne4 {[%emt 0:00:35]} 31. Nc6 $1 {[%emt 0:00:19]} Bc4 {[%emt 0:00:34]} 32. Rxc4 {[%emt 0:00:01]} dxc4 {[%emt 0:00:01]} 33. Qxc4 {[%emt 0:00:01]} Ra8 {[%emt 0:00:13]} 34. Bg2 {[%emt 0:00:02]} Kh8 {[%emt 0:00:58]} (34... Bf8 $1 $15) 35. Qd5 {[%emt 0:00:01]} (35. Nxa5 $11 Rxa5 36. Bxe4 Rxa4 37. Bc6) 35... f5 $1 $15 {[%emt 0:00:05]} 36. Nxa5 {[%emt 0:00:03]} Rc8 {[%emt 0:00:15]} 37. Bxe4 {[%emt 0:00:04]} ({Don't play} 37. Bxb4 Qxa4 38. Bxe4 fxe4 $17 (38... Qxb4 39. Bd3 $11)) 37... fxe4 {[%emt 0:00:17]} 38. Bxb4 {[%emt 0:00:01]} (38. Kg2 $11) 38... Qxa4 $17 {[%emt 0:00:03]} 39. Qb7 $2 {[%emt 0:00:05][%mdl 8192]} (39. Be1 $17) 39... Qd1+ $19 {[%emt 0:00:04]} 40. Kg2 {[%emt 0:00:00]} Qf3+ {[%emt 0:00:01]} 41. Kh3 {[%emt 0:00:01] [#]} Qh5+ $2 {[%emt 0:00:04]} (41... Rg8 $1 $19 {[%cal Og6g5] ( -> ...g5!)} 42. Be7 Qxf2) 42. Kg2 $11 {[%emt 0:00:01]} Qf3+ $2 {[%emt 0:00:01][%mdl 8192]} (42... Qf5 $11 43. Nc6 Rf8 44. Bxf8 Qf3+ 45. Kh3 Qf5+ 46. Kg2) 43. Kh3 $19 {[%emt 0:00:01] [#]} Qh5+ $2 {[%emt 0:00:03]} (43... Rg8 $1 $19 44. Be7 Qh5+ (44... Qxf2 $2 45. Qb5 $19) 45. Kg2 Qxa5 46. Qxe4 Qa8 47. Qxa8 Rxa8) 1/2-1/2